bitfinex/quotes_ETHUSD_20241204
["timestamp","ask_amount","ask_price","bid_price","bid_amount"]
[1733346391260,1.5463,3879.1,3877.5,0.0257769]
[1733346391766,1.5463,3879.1,3879.0,3.0]
[1733346391964,1.5463,3879.1,3877.5,0.0257769]
[1733346392146,1.5463,3879.1,3877.6,1.518]
[1733346392335,1.5463,3879.1,3877.7,0.18015421]
[1733346392640,1.78377436,3881.3,3877.7,0.18015421]
[1733346392847,1.78377436,3881.3,3878.8,1.5027]
[1733346392848,1.5463,3881.3,3878.8,1.5027]
[1733346393030,1.5463,3881.3,3878.9,0.02577004]
[1733346393219,1.70093,3881.3,3879.0,0.152847]
[1733346393558,1.5463,3881.3,3879.1,0.025768]
[1733346393857,1.5463,3881.3,3880.6,3.0]
[1733346394619,1.5463,3881.3,3879.1,0.02576804]
[1733346395264,1.5463,3881.3,3879.0,0.152847]
[1733346395464,1.5463,3881.3,3878.5,0.02576802]
[1733346395465,1.5463,3881.3,3877.8,1.61787148]
[1733346395633,1.6592,3880.9,3877.9,0.17722492]
[1733346395835,1.5407,3880.7,3878.0,0.02577539]
[1733346396045,0.55,3880.6,3878.0,0.37916452]
[1733346396349,1.5407,3880.7,3878.1,1.5807]
[1733346396669,1.5407,3880.7,3878.7,1.5807]
[1733346396868,1.5407,3880.7,3878.8,0.57576613]
[1733346398668,1.5407,3880.7,3878.9,0.35338913]
[1733346398872,1.5407,3880.7,3879.0,0.0257665]
[1733346399373,1.5407,3880.7,3880.2,3.0]
[1733346399574,1.5407,3880.7,3879.0,0.0257665]
[1733346399777,1.5407,3880.7,3879.1,0.02576861]
[1733346400883,1.5407,3880.7,3880.6,3.0]
[1733346401495,1.5407,3880.7,3880.4,3.0]
[1733346401641,0.55,3880.6,3880.2,3.0]
[1733346402282,0.55,3880.6,3878.8,0.02576798]
[1733346402486,1.5407,3880.7,3880.2,3.0]
[1733346402785,1.5407,3880.7,3878.8,0.02576798]
[1733346402786,1.5407,3880.7,3880.3,0.02576818]
[1733346402980,1.5407,3880.7,3878.9,0.57576679]
[1733346403149,1.5132,3882.3,3879.1,3.55]
[1733346403344,1.5132,3882.1,3879.2,0.37915112]
[1733346403678,1.5132,3882.1,3879.3,0.55]
[1733346403885,1.5132,3882.1,3879.4,0.02576112]
[1733346404243,0.23936085,3882.0,3879.4,0.02576112]
[1733346404461,1.5132,3882.0,3879.4,0.02576112]
[1733346404665,1.5132,3882.0,3879.4,0.37915025]
[1733346404852,0.55,3881.9,3879.4,0.37915025]
[1733346405249,1.5132,3882.0,3879.4,0.37915025]
[1733346405485,1.5132,3882.0,3879.6,3.55]
[1733346405646,1.5132,3882.0,3879.7,0.57685442]
[1733346405846,1.5132,3882.0,3879.7,0.02575939]
[1733346406347,1.5132,3882.0,3879.1,0.02576216]
[1733346406554,0.39722274,3883.0,3879.1,0.02576216]
[1733346406555,0.55,3881.6,3879.1,0.02576216]
[1733346406854,0.55,3881.6,3878.5,1.5818]
[1733346406855,1.5132,3881.5,3878.6,0.02576737]
[1733346407054,0.55,3881.2,3878.7,0.16075674]
[1733346407379,0.55,3880.6,3878.8,0.28317061]
[1733346407578,0.55,3880.4,3878.8,0.28317061]
[1733346408200,1.5132,3880.5,3878.8,0.28317061]
[1733346408347,1.5132,3880.5,3878.8,0.63655974]
[1733346408549,1.5132,3880.5,3878.8,0.28317061]
[1733346409189,1.5132,3880.5,3878.8,0.2574]
[1733346409346,1.5132,3880.5,3878.9,0.28317181]
[1733346409785,0.16053835,3880.5,3878.9,0.28317181]
[1733346410247,0.16053835,3880.5,3878.9,0.02577181]
[1733346410451,0.16053835,3880.5,3878.5,0.2574]
[1733346410772,0.16053835,3880.5,3878.6,0.02577003]
[1733346410973,0.16053835,3880.5,3878.7,0.2574]
[1733346411285,0.16053835,3880.5,3878.5,0.35338913]
[1733346411286,0.16053835,3880.5,3879.2,1.9138]
[1733346411490,0.06053835,3880.5,3879.3,0.47454699]
[1733346412394,0.23956513,3882.0,3879.3,0.47454699]
[1733346412581,0.23956513,3881.9,3879.3,0.72793612]
[1733346412779,0.23956513,3881.8,3879.3,0.72793612]
[1733346412962,0.40051528,3882.4,3879.3,0.37454699]
[1733346413150,0.39722274,3882.7,3880.8,3.0]
[1733346413151,1.02386462,3882.3,3880.8,3.0]
[1733346413347,0.86307799,3882.2,3880.8,3.0]
[1733346413582,0.55,3882.0,3879.6,0.02576429]
[1733346413760,0.55,3881.8,3880.8,3.0]
[1733346413946,0.55,3881.6,3880.8,3.0]
[1733346414152,0.40075058,3882.3,3880.8,3.0]
[1733346414388,0.62394902,3882.2,3880.8,3.0]
[1733346414550,1.6641,3882.0,3880.8,3.0]
[1733346414752,1.6641,3881.8,3879.5,0.2574]
[1733346414994,1.6141,3881.6,3880.4,3.0]
[1733346415286,0.23998039,3881.5,3879.4,0.2030947]
[1733346415488,0.78998039,3881.4,3879.3,0.11714963]
[1733346415651,0.23998039,3881.3,3879.3,0.02576963]
[1733346415851,0.55,3881.2,3880.4,3.0]
[1733346416051,1.5795,3881.1,3878.8,0.2574]
[1733346416288,0.55,3881.2,3878.8,0.2574]
[1733346416289,2.1295,3881.0,3878.8,0.2574]
[1733346416490,2.1295,3881.0,3876.7,5.29]
[1733346416491,1.5795,3880.5,3878.3,0.02576909]
[1733346416651,0.89234481,3880.9,3877.4,0.02577467]
[1733346416652,0.5757697,3880.4,3877.4,0.02577467]
[1733346416851,0.5757697,3880.4,3877.5,0.35208913]
[1733346416852,1.5795,3880.2,3877.5,0.35208913]
[1733346417059,1.5795,3880.2,3877.6,0.28317469]
[1733346417357,1.5795,3880.2,3877.8,0.2574]
[1733346417508,1.5795,3880.2,3879.6,3.0]
[1733346417912,1.5795,3880.2,3878.2,0.02577178]
[1733346418137,1.5795,3880.2,3879.6,3.0]
[1733346418352,1.5795,3880.2,3878.2,0.02577178]
[1733346418520,1.5795,3880.2,3879.6,3.0]
[1733346418860,1.5795,3880.2,3879.6,0.3]
[1733346419148,1.5795,3880.2,3879.7,0.02577072]
[1733346419320,1.5795,3880.2,3878.9,0.60948913]
[1733346419521,1.5795,3880.2,3879.0,0.02576927]
[1733346420053,1.5795,3880.2,3878.7,0.55]
[1733346420054,1.5795,3880.2,3878.4,0.60948913]
[1733346420256,1.5795,3880.2,3878.2,0.02576928]
[1733346420416,1.5502,3879.9,3877.2,1.5476]
[1733346420613,1.5502,3879.9,3877.4,0.35208913]
[1733346420812,0.5757697,3879.8,3877.5,0.02577615]
[1733346421030,1.5502,3879.7,3877.5,0.02577615]
[1733346421375,0.55,3879.6,3877.5,0.02577615]
[1733346421530,1.5502,3879.3,3877.5,0.22393157]
[1733346421728,1.5502,3879.1,3877.4,0.02578216]
[1733346422668,1.5502,3879.1,3877.0,0.41808734]
[1733346422669,1.5502,3879.1,3877.1,0.02578172]
[1733346422870,1.5002,3879.1,3877.1,0.02578172]
[1733346423172,1.5002,3879.1,3876.9,0.22787085]
[1733346423339,1.5002,3879.1,3876.6,1.5476]
[1733346423541,1.5002,3879.1,3876.8,0.55]
[1733346423750,1.5002,3879.1,3877.0,0.55]
[1733346423947,0.55,3878.9,3876.7,0.15476]
[1733346424274,0.03222997,3878.8,3876.7,0.15476]
[1733346424474,0.03222997,3878.8,3876.6,0.41831683]
[1733346425028,0.55,3878.9,3876.6,0.41831683]
[1733346425263,0.55,3879.9,3876.7,0.55]
[1733346425424,0.55,3879.8,3876.8,0.01290202]
[1733346425629,0.38330522,3880.4,3876.8,0.01290202]
[1733346425630,0.55,3879.6,3876.8,0.01290202]
[1733346425944,0.55,3879.4,3876.8,0.01290202]
[1733346426272,1.5502,3879.3,3876.8,0.01290202]
[1733346426467,0.55,3879.2,3876.8,0.01290202]
[1733346426874,0.55,3879.0,3876.6,0.40540832]
[1733346427166,1.6541,3878.7,3876.7,0.01291656]
[1733346427325,1.6541,3878.5,3875.7,0.01291655]
[1733346427670,1.6541,3878.1,3875.7,0.01291655]
[1733346427866,0.22041,3878.6,3875.7,0.43339489]
[1733346427867,0.98810205,3877.7,3875.7,0.43339489]
[1733346428176,0.98810205,3877.7,3875.8,1.93542094]
[1733346428345,0.98810205,3877.7,3875.9,1.62850658]
[1733346428570,0.98810205,3877.7,3876.0,0.19483275]
[1733346428764,0.98810205,3877.7,3876.1,0.01291842]
[1733346430202,1.60772143,3880.3,3876.1,0.01291842]
[1733346430203,0.5103516,3880.0,3876.3,2.0712]
[1733346430405,1.07181428,3880.8,3876.7,0.55]
[1733346430691,0.03222463,3880.8,3876.8,0.01289784]
[1733346430900,0.03222463,3880.8,3878.8,3.0]
[1733346431052,1.5144,3880.7,3876.8,0.01289784]
[1733346431253,1.5144,3880.5,3876.9,0.20840978]
[1733346431476,1.5144,3880.3,3877.0,0.0128978]
[1733346431681,0.22200878,3880.9,3877.0,0.0128978]
[1733346431682,1.5144,3879.8,3878.8,3.0]
[1733346431849,0.03222463,3880.2,3877.0,0.0128978]
[1733346431850,1.5144,3879.6,3877.0,0.0128978]
[1733346432050,1.5835,3879.0,3878.0,3.0]
[1733346432336,1.5835,3878.8,3878.0,3.0]
[1733346432585,0.55,3878.7,3877.0,0.01290347]
[1733346432760,0.55,3878.3,3876.9,0.20840978]
[1733346432959,1.5835,3878.0,3876.1,1.59531699]
[1733346433198,0.55,3878.3,3876.1,1.59531699]
[1733346433199,1.5835,3877.8,3876.1,0.01292135]
[1733346433550,1.5835,3877.8,3875.6,1.5824]
[1733346433551,1.5835,3877.8,3876.2,0.01292135]
[1733346433752,1.5835,3877.8,3875.7,0.01292215]
[1733346433948,1.5835,3877.8,3875.7,0.17116215]
[1733346434152,2.2091,3877.6,3875.7,0.15824]
[1733346434455,0.55,3877.2,3875.1,0.01293456]
[1733346434653,1.6591,3876.9,3875.0,1.5515]
[1733346434881,1.6504,3876.7,3875.0,0.01293502]
[1733346435050,0.2,3878.4,3874.6,1.5515]
[1733346435051,1.6504,3876.5,3874.7,0.01294332]
[1733346435261,1.6504,3876.5,3874.8,0.15644433]
[1733346435596,1.6504,3876.5,3874.9,0.01294266]
[1733346435898,1.6504,3876.5,3875.1,1.6634]
[1733346436121,1.6504,3876.5,3875.2,0.01293442]
[1733346436618,1.6504,3876.5,3875.1,1.6634]
[1733346436770,0.55,3876.4,3875.2,0.16763344]
[1733346436969,0.13224487,3878.6,3874.4,1.56423942]
[1733346436970,1.6112,3876.3,3874.4,1.56423942]
[1733346437321,1.6112,3876.3,3874.5,0.57722094]
[1733346437470,1.6112,3876.3,3874.6,0.01293976]
[1733346438185,1.6112,3876.3,3874.9,0.2951]
[1733346438390,1.6112,3876.3,3875.0,0.01293978]
[1733346439972,0.0322456,3878.5,3875.0,0.01293978]
[1733346439973,1.6103,3878.4,3875.1,1.5655]
[1733346440281,0.03223606,3878.3,3875.2,4.39465677]
[1733346440502,1.6103,3878.2,3875.2,3.84465677]
[1733346440703,1.6103,3878.0,3875.2,0.58725677]
[1733346440882,1.6453,3877.8,3876.6,3.0]
[1733346441109,1.6453,3877.8,3876.7,0.0129333]
[1733346441283,1.6453,3877.8,3876.0,0.01292959]
[1733346441492,1.6453,3877.8,3875.9,0.40328811]
[1733346441821,0.55,3877.4,3875.9,0.40328811]
[1733346442022,0.55,3877.1,3876.6,3.0]
[1733346442331,0.55,3876.7,3875.9,0.40328811]
[1733346442535,1.6259,3876.6,3875.9,0.40328811]
[1733346442827,1.6259,3876.4,3874.9,0.2951]
[1733346443036,0.55,3876.7,3875.2,0.40339161]
[1733346443037,1.5251,3876.2,3875.2,0.40339161]
[1733346443322,1.5251,3876.2,3874.9,0.2951]
[1733346443323,0.55,3875.9,3874.9,0.2951]
[1733346443484,0.55,3875.7,3874.9,0.2951]
[1733346443897,1.5251,3875.6,3874.9,0.2951]
[1733346446139,1.5251,3875.6,3875.0,0.01295543]
[1733346446302,1.78305832,3877.8,3875.0,0.01295543]
[1733346446505,1.5447,3877.6,3875.0,0.01295543]
[1733346447447,1.5447,3877.6,3875.0,0.27035543]
[1733346447804,0.55,3877.6,3875.0,0.27035543]
[1733346448010,1.5131,3877.3,3875.0,0.27035543]
[1733346448313,0.55,3877.2,3875.0,0.27035543]
[1733346449001,1.5131,3877.1,3875.0,0.27035543]
[1733346449204,1.5131,3877.1,3875.4,0.2574]
[1733346449442,0.23875402,3878.4,3875.4,0.2574]
[1733346449443,1.5131,3878.3,3875.6,0.2574]
[1733346449599,1.5131,3878.3,3875.7,0.01291874]
[1733346449798,1.5131,3878.3,3875.9,0.2574]
[1733346450036,1.5131,3878.3,3877.4,3.0]
[1733346450237,1.5131,3878.3,3877.5,0.01291875]
[1733346450437,1.5131,3878.3,3876.0,0.17902187]
[1733346450438,1.5131,3878.3,3876.8,1.847]
[1733346450652,1.5131,3878.3,3877.0,0.2574]
[1733346450950,0.1609038,3880.3,3877.0,0.2574]
[1733346450951,1.5339,3880.5,3878.7,3.0]
[1733346451240,0.39792553,3880.8,3877.1,0.01290633]
[1733346451241,1.5339,3880.3,3877.1,0.01290633]
[1733346451400,1.5339,3880.1,3879.0,3.0]
[1733346451604,1.5339,3880.1,3877.9,0.2574]
[1733346451806,1.5339,3880.1,3879.0,3.0]
[1733346452014,1.5339,3880.1,3879.1,0.01289146]
[1733346452269,1.5339,3880.1,3879.5,3.0]
[1733346452558,1.5339,3880.1,3878.0,0.1796]
[1733346453043,1.5339,3880.1,3878.3,0.55]
[1733346453247,2.03275924,3881.7,3878.6,0.55]
[1733346453473,1.5547,3881.7,3878.7,1.631]
[1733346453749,1.5547,3881.7,3879.1,0.55]
[1733346453905,1.5547,3881.7,3879.1,3.55]
[1733346455702,0.23839619,3883.2,3879.0,2.3908]
[1733346455703,0.55,3881.4,3879.0,5.3908]
[1733346455907,2.1839,3881.0,3879.1,0.70218]
[1733346456140,0.55,3880.7,3879.1,0.70218]
[1733346456309,1.6339,3880.6,3878.4,1.631]
[1733346456508,1.6339,3880.5,3878.4,1.631]
[1733346456757,0.55,3880.2,3877.9,1.631]
[1733346457051,2.1839,3880.0,3877.9,1.631]
[1733346457263,0.55,3880.0,3878.0,0.19248829]
[1733346457543,1.6355,3879.9,3878.0,0.01288829]
[1733346459342,1.6355,3879.9,3879.8,3.0]
[1733346459859,1.6355,3879.9,3878.0,0.01288829]
[1733346461012,0.47522847,3882.3,3877.3,1.5352]
[1733346461013,0.55,3879.6,3877.3,1.5352]
[1733346461353,0.55,3879.2,3877.3,0.01289875]
[1733346461556,0.55,3878.8,3876.6,0.01290427]
[1733346461851,0.24695785,3879.1,3876.4,1.5352]
[1733346461852,0.55,3878.5,3876.9,0.01290427]
[1733346462747,2.1627,3878.5,3876.5,0.41575223]
[1733346463059,1.6127,3878.5,3876.9,0.01291012]
[1733346463407,0.55,3878.4,3876.9,0.01291012]
[1733346463615,1.6127,3878.3,3876.9,0.01291117]
[1733346464149,1.6127,3878.3,3878.0,3.0]
[1733346464313,1.6127,3878.3,3878.1,0.31290629]
[1733346464507,1.6127,3878.3,3876.6,0.012906]
[1733346465111,1.6127,3878.3,3878.0,3.0]
[1733346465332,1.6127,3878.3,3876.5,0.4157484]
[1733346466530,0.55,3878.0,3876.5,0.40284211]
[1733346466762,1.59953795,3877.9,3876.5,0.40284211]
[1733346466982,1.5673,3877.7,3876.5,0.40284211]
[1733346467181,1.59953794,3877.7,3876.5,0.40284211]
[1733346467531,0.2149538,3877.8,3876.5,0.40284211]
[1733346467532,1.6587,3877.5,3876.5,0.40284211]
[1733346467857,1.69094178,3877.5,3876.5,0.40284211]
[1733346468264,1.69094178,3877.5,3873.8,0.26563853]
[1733346468265,0.55,3877.2,3874.5,1.6365]
[1733346468476,1.6587,3876.9,3875.0,0.01294497]
[1733346468838,1.6587,3876.9,3875.1,0.05898465]
[1733346469166,1.6587,3876.9,3875.2,0.01294202]
[1733346469473,1.6587,3876.9,3875.3,0.0589816]
[1733346469632,1.6587,3876.9,3875.4,0.01293708]
[1733346469836,1.6587,3876.9,3875.4,0.07191716]
[1733346470363,1.6587,3876.9,3875.4,0.05898008]
[1733346470573,1.6587,3876.9,3876.2,3.0]
[1733346471040,1.6587,3876.9,3876.2,0.3]
[1733346471394,1.6587,3876.9,3875.0,1.57353337]
[1733346472278,1.6249,3876.8,3875.0,0.01293337]
[1733346472570,1.6249,3876.6,3874.6,1.5201]
[1733346472867,0.2,3878.1,3874.3,0.01293947]
[1733346472868,1.65714797,3876.5,3874.3,0.01293947]
[1733346473277,1.65714797,3876.5,3874.2,0.01294452]
[1733346473431,1.6249,3876.5,3874.2,0.01294452]
[1733346473636,1.58474962,3876.4,3874.2,0.01294452]
[1733346474091,1.58474962,3876.4,3875.6,3.0]
[1733346474232,1.58474962,3876.4,3874.3,0.01294986]
[1733346474233,1.5525,3876.4,3874.3,0.01294986]
[1733346474439,1.5525,3876.4,3875.6,3.0]
[1733346475772,1.5525,3876.3,3875.6,3.0]
[1733346475980,1.5248,3876.1,3875.6,3.0]
[1733346476991,1.5248,3876.1,3874.3,0.01294984]
[1733346477147,1.5248,3876.1,3874.1,1.5201]
[1733346477148,1.5248,3876.1,3875.6,3.0]
[1733346477937,1.5248,3876.1,3874.2,0.0129535]
[1733346478390,1.5248,3876.1,3874.2,0.01294984]
[1733346478706,1.5248,3876.1,3875.6,3.0]
[1733346478987,1.5248,3876.1,3874.2,0.01295398]
[1733346479204,1.5248,3876.1,3873.6,1.5989]
[1733346479205,1.5248,3875.8,3875.2,3.0]
[1733346479351,1.5248,3875.8,3873.7,0.0129535]
[1733346479554,1.5248,3875.8,3875.2,3.0]
[1733346479974,1.5248,3875.8,3873.7,0.0129535]
[1733346480489,1.747528,3875.8,3873.7,0.0129535]
[1733346480689,1.5248,3875.8,3873.7,0.0129535]
[1733346480987,1.5248,3875.8,3873.8,0.01295851]
[1733346481504,1.5248,3875.8,3873.8,0.01295691]
[1733346481913,1.5248,3875.8,3874.0,0.30838445]
[1733346482199,1.5248,3875.8,3874.0,0.0129534]
[1733346482357,1.5248,3875.8,3875.2,3.0]
[1733346482553,0.03225492,3875.7,3875.2,3.0]
[1733346482754,0.03225492,3875.7,3873.0,0.01295843]
[1733346482755,1.5248,3875.6,3873.2,1.5989]
[1733346482996,1.5248,3875.6,3873.0,0.01295843]
[1733346482997,0.55,3875.3,3873.0,0.41180529]
[1733346483157,0.18796605,3875.5,3872.7,0.01296806]
[1733346483158,1.5248,3875.0,3872.7,1.5989]
[1733346483360,1.5248,3875.0,3872.7,1.61187608]
[1733346483361,2.0748,3875.0,3872.7,1.61187608]
[1733346483612,2.0748,3875.0,3872.7,1.5989]
[1733346483896,2.0748,3875.0,3872.8,0.01297707]
[1733346484085,2.0748,3875.0,3872.7,1.5989]
[1733346484086,2.0748,3875.0,3872.7,0.01297707]
[1733346484465,0.25570549,3875.5,3872.7,0.0590212]
[1733346484466,1.6249,3874.6,3872.7,0.0590212]
[1733346484768,0.55,3874.7,3872.7,0.0590212]
[1733346484769,1.6249,3874.4,3872.7,0.0590212]
[1733346485497,0.21749,3874.5,3872.7,0.0590212]
[1733346485498,1.6249,3874.2,3872.7,0.0590212]
[1733346485685,1.6249,3874.1,3872.7,0.0590212]
[1733346487163,1.6249,3873.9,3872.7,0.0590212]
[1733346487357,1.6249,3873.7,3872.7,0.0590212]
[1733346487584,1.65717474,3873.6,3872.7,0.0590212]
[1733346487757,1.6249,3873.4,3872.7,0.0590212]
[1733346487974,1.6249,3873.2,3872.7,0.0590212]
[1733346488315,1.6249,3873.0,3872.7,0.0590212]
[1733346488785,1.6249,3872.8,3870.4,1.5106]
[1733346488994,0.2,3873.3,3869.4,0.01301109]
[1733346488995,1.6249,3872.6,3870.0,1.5106]
[1733346489189,1.79061871,3872.6,3870.0,1.5236161]
[1733346489389,1.79061871,3872.6,3870.1,0.01303188]
[1733346489764,1.79061871,3872.6,3870.0,1.9295835]
[1733346490082,1.79061871,3872.6,3870.1,0.01303187]
[1733346490286,1.6249,3872.6,3870.2,0.30838445]
[1733346490484,1.6249,3872.6,3870.3,0.01302267]
[1733346490689,1.6249,3872.6,3870.3,0.32140712]
[1733346491264,0.03228476,3872.5,3870.1,0.01301809]
[1733346491463,1.6249,3872.4,3870.0,1.9295835]
[1733346491789,1.77097809,3872.3,3870.1,0.2237968]
[1733346491997,1.60848809,3872.3,3870.1,0.2237968]
[1733346492446,1.60848809,3872.3,3870.1,0.01303212]
[1733346492447,1.5762,3872.3,3870.1,0.01303212]
[1733346492707,1.5762,3872.3,3870.1,0.32141657]
[1733346493061,1.5762,3872.3,3870.2,0.30838445]
[1733346493301,1.5762,3872.3,3870.3,0.01302275]
[1733346493616,1.5762,3872.3,3870.3,0.01302274]
[1733346493964,1.5762,3872.3,3870.3,0.32140719]
[1733346494168,1.5762,3872.3,3870.0,0.4189835]
[1733346494169,1.55208606,3872.2,3871.2,3.0]
[1733346494370,1.5198,3872.2,3870.0,0.01302641]
[1733346494609,1.55208864,3872.2,3870.0,0.01302641]
[1733346494772,1.55208864,3872.2,3869.6,1.5031]
[1733346494968,1.73437086,3872.1,3870.8,3.0]
[1733346495218,1.73437086,3872.1,3869.7,0.47172419]
[1733346495511,1.5634,3871.9,3869.7,0.15031]
[1733346495719,1.59569328,3871.8,3869.7,0.15031]
[1733346495919,1.59569328,3871.8,3869.6,0.41248275]
[1733346496097,1.59569328,3871.8,3869.3,0.01303835]
[1733346496317,1.59569328,3871.8,3869.2,1.57213835]
[1733346496487,1.5634,3871.8,3869.3,0.30838445]
[1733346496688,1.5634,3871.8,3869.4,0.01303835]
[1733346496886,1.5894,3871.6,3869.5,0.49643673]
[1733346497117,1.5894,3871.6,3869.6,2.20462488]
[1733346497321,1.5894,3871.6,3869.7,0.30838445]
[1733346497486,1.5894,3871.6,3869.8,0.01302824]
[1733346497684,1.5894,3871.6,3869.8,0.30838445]
[1733346497888,1.5894,3871.6,3869.9,0.19630127]
[1733346498129,1.5894,3871.6,3871.1,3.0]
[1733346498489,3.33639931,3873.8,3870.0,0.01303123]
[1733346498490,1.5877,3872.2,3871.2,0.013023]
[1733346498712,1.5877,3872.2,3872.0,3.0]
[1733346498913,1.5877,3872.2,3870.8,0.0130102]
[1733346499120,1.5877,3872.2,3870.9,0.20128703]
[1733346499388,1.5877,3872.2,3869.9,0.50522962]
[1733346499389,1.6486,3872.0,3870.1,1.5687]
[1733346499789,1.6486,3872.0,3871.3,3.0]
[1733346499996,1.6486,3872.0,3870.1,1.5687]
[1733346500323,1.6486,3872.0,3870.0,0.01302265]
[1733346500531,1.6486,3872.0,3869.1,1.5604]
[1733346500687,1.6486,3872.0,3870.4,1.5604]
[1733346501432,1.6486,3872.0,3870.5,0.01301935]
[1733346501588,1.6486,3872.0,3870.5,0.56301935]
[1733346501789,1.6486,3872.0,3870.5,0.01301935]
[1733346502327,1.6486,3872.0,3870.0,1.5507]
[1733346502485,1.6486,3872.0,3871.4,3.0]
[1733346502688,1.6486,3872.0,3870.0,1.5507]
[1733346503323,1.6486,3872.0,3870.1,0.55]
[1733346503526,1.6486,3872.0,3870.0,1.56371843]
[1733346503740,1.6486,3872.0,3870.1,0.18211184]
[1733346504236,0.03228717,3871.9,3870.1,0.18211184]
[1733346504440,0.2,3873.5,3870.1,0.18211184]
[1733346504441,1.6459,3873.3,3870.1,0.18211184]
[1733346504742,1.6459,3873.1,3870.1,0.18211184]
[1733346504914,1.81049,3873.0,3870.2,0.21447686]
[1733346505238,0.23708343,3873.8,3870.2,0.21447686]
[1733346505448,0.03228388,3873.9,3870.5,0.55]
[1733346505620,0.03228388,3873.9,3870.6,0.01301229]
[1733346505804,0.03228388,3873.9,3870.7,0.55]
[1733346506002,0.1,3874.6,3872.3,3.0]
[1733346506003,0.26955015,3874.5,3872.3,3.0]
[1733346506205,0.23727236,3874.4,3871.1,0.01299906]
[1733346506404,0.1,3874.9,3870.8,0.44347375]
[1733346506405,0.2,3874.1,3872.0,3.0]
[1733346506634,0.2,3873.8,3872.0,3.0]
[1733346506846,0.0322838,3873.8,3870.8,0.45648149]
[1733346507139,0.0322838,3873.8,3872.0,3.0]
[1733346507301,0.0322838,3873.8,3870.8,0.01300774]
[1733346507302,0.0322838,3873.8,3870.8,0.42005686]
[1733346507507,0.0322838,3873.8,3872.0,3.0]
[1733346507734,0.0322838,3873.8,3870.5,1.88952521]
[1733346507735,0.3961302,3874.9,3871.2,0.1]
[1733346507948,0.63723429,3874.8,3871.3,0.02582633]
[1733346508145,0.61796667,3874.7,3870.9,0.2]
[1733346508300,1.5975,3874.5,3870.9,0.2]
[1733346508504,1.5975,3874.3,3870.6,3.02582633]
[1733346508710,0.24274105,3874.4,3870.5,2.49628564]
[1733346508711,1.5975,3874.1,3870.7,0.2]
[1733346508918,0.84207035,3874.4,3870.7,0.2]
[1733346508919,2.23536454,3874.0,3872.1,0.51347212]
[1733346509209,1.5975,3873.9,3872.1,0.51347212]
[1733346509439,1.5975,3873.7,3872.1,0.51347212]
[1733346509754,1.5975,3873.5,3871.1,0.1]
[1733346509907,1.5975,3873.3,3870.7,0.2]
[1733346510113,1.5975,3873.1,3870.7,0.2]
[1733346510308,1.51685227,3873.0,3871.7,3.0]
[1733346510513,1.51685227,3873.0,3871.9,3.0]
[1733346510812,1.51685227,3873.0,3872.2,0.51383296]
[1733346512750,1.51685227,3873.0,3871.8,3.0]
[1733346512923,1.51685227,3873.0,3872.9,0.52388487]
[1733346515273,0.38248686,3874.3,3872.9,0.52388487]
[1733346515574,2.3699,3875.5,3872.9,0.52388487]
[1733346515575,0.39788175,3875.3,3872.9,0.52388487]
[1733346515756,0.39788175,3875.1,3872.9,0.52388487]
[1733346515923,0.6220272,3875.0,3872.9,0.52388487]
[1733346516129,0.6220272,3874.9,3873.0,0.02581608]
[1733346516329,2.30937677,3877.2,3872.3,1.5142]
[1733346516330,0.6220272,3874.8,3873.8,3.0]
[1733346516526,0.6220272,3874.8,3873.1,0.3]
[1733346516527,0.39788175,3875.8,3873.1,0.3]
[1733346516734,0.62221363,3875.7,3873.1,0.3]
[1733346516947,5.67514054,3877.0,3873.1,0.3]
[1733346516948,0.62221363,3875.6,3873.1,0.3]
[1733346517148,0.62221363,3875.5,3874.0,0.50781753]
[1733346517364,5.67514054,3877.0,3873.1,0.1]
[1733346517365,0.62221363,3875.4,3873.1,0.3]
[1733346517588,0.23931293,3875.3,3873.1,0.1]
[1733346517742,0.23931293,3875.2,3873.1,0.1]
[1733346517937,0.23931293,3875.1,3873.8,3.0]
[1733346518238,3.0,3876.9,3874.1,0.3]
[1733346518239,0.38235329,3876.8,3874.1,0.3]
[1733346518437,0.1753,3876.6,3874.1,0.3]
[1733346518661,1.06509866,3878.1,3874.1,0.2929369]
[1733346518662,0.23897506,3876.5,3874.1,0.2929369]
[1733346518874,0.1753,3876.4,3874.1,0.2929369]
[1733346519075,0.0070631,3877.5,3874.1,0.2929369]
[1733346519076,0.1753,3876.3,3874.1,0.2929369]
[1733346519279,0.1753,3876.3,3874.1,0.1929369]
[1733346519489,0.1753,3876.3,3874.1,0.2929369]
[1733346519643,0.1753,3876.3,3874.1,0.1]
[1733346519847,0.1753,3876.3,3873.9,0.1929369]
[1733346520043,0.1753,3876.3,3874.8,3.0]
[1733346520453,0.1753,3876.3,3875.0,3.0]
[1733346520698,0.1753,3876.3,3874.9,0.02580716]
[1733346520699,0.1753,3876.3,3874.9,0.1929369]
[1733346520987,0.1753,3876.3,3875.3,0.1929369]
[1733346521140,0.1753,3876.3,3875.0,0.1929369]
[1733346521339,0.1753,3876.3,3875.3,0.1929369]
[1733346522274,0.1753,3876.3,3874.8,0.1929369]
[1733346522699,0.410305,3877.7,3874.6,0.19336252]
[1733346522900,0.23848827,3877.6,3874.3,0.1929369]
[1733346523106,0.23848827,3877.6,3874.1,1.6572]
[1733346523287,0.38158123,3878.0,3873.6,0.42941658]
[1733346523288,0.0070631,3877.1,3873.7,0.1929369]
[1733346524031,0.0070631,3876.9,3873.6,0.59655011]
[1733346524254,0.23848827,3876.8,3873.6,0.59655011]
[1733346524533,0.0070631,3876.9,3873.7,0.02580971]
[1733346524890,0.24555137,3877.2,3873.9,0.1929369]
[1733346525314,0.23848827,3877.1,3873.9,0.1929369]
[1733346525503,0.0070631,3877.2,3874.4,3.0]
[1733346525832,0.0070631,3877.2,3873.6,0.40361321]
[1733346525833,0.0070631,3876.5,3874.1,3.0]
[1733346526040,0.23848827,3876.7,3873.6,0.40361321]
[1733346526343,0.23848827,3877.0,3873.7,0.02581215]